fUSD/lending_fUSD_20250622
["ID","MTS","AMOUNT","RATE_DAILY","PERIOD"]
[366905976,1750564254163,-1192.42,0.00019178,2]
[366905977,1750564254173,-490.0,0.00019178,2]
[366905978,1750564254182,-490.0,0.00019178,2]
[366905979,1750564254193,-12439.01,0.00019178,2]
[366905980,1750564254203,-490.0,0.00019178,2]
[366905981,1750564254213,-490.0,0.00019178,2]
[366905982,1750564254223,-3678.01,0.00019178,2]
[366905983,1750564254233,-490.0,0.00019178,2]
[366905984,1750564254243,-490.0,0.00019178,2]
[366905985,1750564254253,-490.0,0.00019178,2]
[366905986,1750564254263,-490.0,0.00019178,2]
[366905987,1750564254272,-490.0,0.00019178,2]
[366905988,1750564254282,-490.0,0.00019178,2]
[366905989,1750564254291,-2084.72,0.00019178,2]
[366905990,1750564254302,-1457.29,0.00019178,2]
[366905991,1750564254311,-1693.09,0.00019178,2]
[366905992,1750564254321,-490.0,0.00019178,2]
[366905993,1750564254331,-490.0,0.00019178,2]
[366905994,1750564254341,-490.0,0.00019178,2]
[366905995,1750564254351,-490.0,0.00019178,2]
[366905996,1750564254361,-2128.51,0.00019178,2]
[366905997,1750564254371,-5999.37,0.00019178,2]
[366905998,1750564254381,-2879.49,0.00019178,2]
[366905999,1750564254391,-490.0,0.00019178,2]
[366906000,1750564254401,-5232.63,0.00019178,2]
[366906001,1750564254411,-490.0,0.00019178,2]
[366906002,1750564254421,-1731.24,0.00019178,2]
[366906003,1750564254431,-490.0,0.00019178,2]
[366906004,1750564254443,-490.0,0.00019178,2]
[366906005,1750564254453,-490.0,0.00019178,2]
[366906006,1750564254463,-490.0,0.00019178,2]
[366906007,1750564254473,-3352.91,0.00019178,2]
[366906008,1750564254482,-490.0,0.00019178,2]
[366906009,1750564254492,-2261.42,0.00019178,2]
[366906010,1750564254502,-490.0,0.00019178,2]
[366906011,1750564254512,-411.72667887,0.00019178,2]
[366906012,1750564254522,-490.0,0.00019178,2]
[366906013,1750564254531,-490.0,0.00019178,2]
[366906014,1750564254542,-490.0,0.00019178,2]
[366906015,1750564254555,-2041.1,0.00019178,2]
[366906016,1750564254565,-549.12,0.00019178,2]
[366906017,1750564254575,-4039.42,0.00019178,2]
[366906018,1750564254586,-1022.03,0.00019178,2]
[366906019,1750564254596,-2484.82,0.00019178,2]
[366906020,1750564254606,-2947.35,0.00019178,2]
[366906021,1750564254618,-2566.52,0.00019178,2]
[366906022,1750564254628,-9876.46,0.00019178,2]
[366906023,1750564254639,-1953.88,0.00019178,2]
[366906024,1750564254650,-5047.72,0.00019178,2]
[366906025,1750564254659,-490.0,0.00019178,2]
[366906026,1750564254669,-490.0,0.00019178,2]
[366906027,1750564254679,-490.0,0.00019178,2]
[366906028,1750564254689,-500.0,0.00019178,2]
[366906029,1750564254699,-150.0,0.00019178,2]
[366906030,1750564254710,-1722.57,0.00019178,2]
[366906031,1750564254721,-490.0,0.00019178,2]
[366906032,1750564254732,-490.0,0.00019178,2]
[366906033,1750564254741,-769.15,0.00019178,2]
[366906034,1750564254751,-490.0,0.00019178,2]
[366906035,1750564254760,-490.0,0.00019178,2]
[366906036,1750564254770,-490.0,0.00019178,2]
[366906037,1750564254779,-722.2,0.00019178,2]
[366906038,1750564254788,-567.77861507,0.00019178,2]
[366906039,1750564254798,-490.0,0.00019178,2]
[366906040,1750564254807,-490.0,0.00019178,2]
[366906041,1750564254816,-2343.24,0.00019178,2]
[366906042,1750564254826,-490.0,0.00019178,2]
[366906043,1750564254836,-1950.2,0.00019178,2]
[366906044,1750564254845,-490.0,0.00019178,2]
[366906045,1750564254855,-697.1,0.00019178,2]
[366906046,1750564254865,-490.0,0.00019178,2]
[366906047,1750564254874,-1789.65,0.00019178,2]
[366906048,1750564254885,-490.0,0.00019178,2]
[366906049,1750564254895,-3366.93,0.00019178,2]
[366906050,1750564254905,-490.0,0.00019178,2]
[366906051,1750564254914,-490.0,0.00019178,2]
[366906052,1750564254923,-490.0,0.00019178,2]
[366906053,1750564254933,-490.0,0.00019178,2]
[366906054,1750564254942,-6720.53,0.00019178,2]
[366906055,1750564254952,-490.0,0.00019178,2]
[366906056,1750564254962,-490.0,0.00019178,2]
[366906057,1750564254971,-615.21,0.00019178,2]
[366906058,1750564254981,-1213.56,0.00019178,2]
[366906059,1750564255083,-1304.47,0.00019178,2]
[366906060,1750564255094,-1625.72,0.00019178,2]
[366906061,1750564255103,-490.0,0.00019178,2]
[366906062,1750564255112,-490.0,0.00019178,2]
[366906063,1750564255122,-490.0,0.00019178,2]
[366906064,1750564255131,-337.7212436,0.00019178,2]
[366906065,1750564255140,-490.0,0.00019178,2]
[366906066,1750564255149,-793.36,0.00019178,2]
[366906067,1750564255159,-490.0,0.00019178,2]
[366906068,1750564255168,-490.0,0.00019178,2]
[366906069,1750564255177,-490.0,0.00019178,2]
[366906070,1750564255187,-490.0,0.00019178,2]
[366906071,1750564255196,-1858.98,0.00019178,2]
[366906072,1750564255205,-490.0,0.00019178,2]
[366906073,1750564255214,-27523.55,0.00019178,2]
[366906074,1750564255223,-490.0,0.00019178,2]
[366906075,1750564255233,-4259.13,0.00019178,2]
[366906076,1750564255242,-490.0,0.00019178,2]
[366906077,1750564255251,-490.0,0.00019178,2]
[366906078,1750564255261,-490.0,0.00019178,2]
[366906079,1750564255270,-11139.02,0.00019178,2]
[366906080,1750564255279,-2253.15,0.00019178,2]
[366906081,1750564255289,-1529.92,0.00019178,2]
[366906082,1750564255298,-308.31302982,0.00019178,2]
[366906083,1750564255308,-490.0,0.00019178,2]
[366906084,1750564255317,-1137.69,0.00019178,2]
[366906085,1750564255327,-490.0,0.00019178,2]
[366906086,1750564255336,-490.0,0.00019178,2]
[366906087,1750564255345,-490.0,0.00019178,2]
[366906088,1750564255355,-490.0,0.00019178,2]
[366906089,1750564255365,-621.94640211,0.00019178,2]
[366906090,1750564255374,-490.0,0.00019178,2]
[366906091,1750564255385,-490.0,0.00019178,2]
[366906092,1750564255394,-2135.77,0.00019178,2]
[366906093,1750564255404,-490.0,0.00019178,2]
[366906094,1750564255413,-2533.35,0.00019178,2]
[366906095,1750564255423,-490.0,0.00019178,2]
[366906096,1750564255432,-490.0,0.00019178,2]
[366906097,1750564255443,-492.59539473,0.00019178,2]
[366906098,1750564255452,-490.0,0.00019178,2]
[366906099,1750564255462,-636.41,0.00019178,2]
[366906100,1750564255472,-1287.64,0.00019178,2]
[366906101,1750564255481,-1414.88,0.00019178,2]
[366906102,1750564255491,-490.0,0.00019178,2]
[366906103,1750564255500,-491.40251416,0.00019178,2]
[366906104,1750564255509,-528.12,0.00019178,2]
[366906105,1750564255519,-490.0,0.00019178,2]
[366906106,1750564255529,-676.24,0.00019178,2]
[366906107,1750564255539,-676.24,0.00019178,2]
[366906108,1750564255548,-676.24,0.00019178,2]
[366906109,1750564255558,-490.0,0.00019178,2]
[366906110,1750564255567,-676.24,0.00019178,2]
[366906111,1750564255577,-490.0,0.00019178,2]
[366906112,1750564255586,-676.24,0.00019178,2]
[366906113,1750564255595,-490.0,0.00019178,2]
[366906114,1750564255605,-888.53,0.00019178,2]
[366906115,1750564255614,-676.24,0.00019178,2]
[366906116,1750564255624,-676.24,0.00019178,2]
[366906117,1750564255634,-676.24,0.00019178,2]
[366906118,1750564255643,-490.0,0.00019178,2]
[366906119,1750564255653,-1042.1,0.00019178,2]
[366906120,1750564255663,-490.0,0.00019178,2]
[366906121,1750564255672,-6741.71,0.00019178,2]
[366906122,1750564255681,-490.0,0.00019178,2]
[366906123,1750564255692,-541.39,0.00019178,2]
[366906124,1750564255702,-490.0,0.00019178,2]
[366906125,1750564255713,-2973.26,0.00019178,2]
[366906126,1750564255723,-490.0,0.00019178,2]
[366906127,1750564255732,-3302.07,0.00019178,2]
[366906128,1750564255743,-490.0,0.00019178,2]
[366906129,1750564255752,-3386.78,0.00019178,2]
[366906130,1750564255761,-490.0,0.00019178,2]
[366906131,1750564255770,-490.0,0.00019178,2]
[366906132,1750564255780,-2390.29,0.00019178,2]
[366906133,1750564255789,-1602.87,0.00019178,2]
[366906134,1750564255798,-930.64,0.00019178,2]
[366906135,1750564255807,-490.0,0.00019178,2]
[366906136,1750564255817,-490.0,0.00019178,2]
[366906137,1750564255826,-1818.93,0.00019178,2]
[366906138,1750564255836,-1721.55,0.00019178,2]
[366906139,1750564255845,-602.72897449,0.00019178,2]
[366906140,1750564255854,-1739.01,0.00019178,2]
[366906141,1750564255863,-490.0,0.00019178,2]
[366906142,1750564255872,-490.0,0.00019178,2]
[366906143,1750564255881,-9836.66,0.00019178,2]
[366906144,1750564255891,-2870.12,0.00019178,2]
[366906145,1750564255900,-490.0,0.00019178,2]
[366906146,1750564255909,-1997.59,0.00019178,2]
[366906147,1750564255918,-834.82,0.00019178,2]
[366906148,1750564255927,-490.0,0.00019178,2]
[366906149,1750564255937,-651.59,0.00019178,2]
[366906150,1750564255946,-651.59,0.00019178,2]
[366906151,1750564255955,-490.0,0.00019178,2]
[366906152,1750564255964,-651.59,0.00019178,2]
[366906153,1750564255974,-1745.44,0.00019178,2]
[366906154,1750564255983,-490.0,0.00019178,2]
[366906155,1750564255993,-651.59,0.00019178,2]
[366906156,1750564256002,-651.59,0.00019178,2]
[366906157,1750564256011,-1375.16,0.00019178,2]
[366906158,1750564256022,-651.59,0.00019178,2]
[366906159,1750564256031,-651.59,0.00019178,2]
[366906160,1750564256040,-651.59,0.00019178,2]
[366906161,1750564256050,-1818.71,0.00019178,2]
[366906162,1750564256059,-880.65,0.00019178,2]
[366906163,1750564256068,-1623.46,0.00019178,2]
[366906164,1750564256077,-593.18,0.00019178,2]
[366906165,1750564256091,-490.0,0.00019178,2]
[366906166,1750564256100,-5397.06,0.00019178,2]
[366906167,1750564256109,-918.6,0.00019178,2]
[366906168,1750564256118,-490.0,0.00019178,2]
[366906169,1750564256127,-411.21747165,0.00019178,2]
[366906170,1750564256137,-1049.86,0.00019178,2]
[366906171,1750564256147,-684.57,0.00019178,2]
[366906172,1750564256156,-2153.21,0.00019178,2]
[366906173,1750564256167,-864.59,0.00019178,2]
[366906174,1750564256176,-490.0,0.00019178,2]
[366906175,1750564256185,-617.88,0.00019178,2]
[366906176,1750564256195,-2761.28,0.00019178,2]
[366906177,1750564256204,-500.0,0.00019178,2]
[366906178,1750564256214,-500.0,0.00019178,2]
[366906179,1750564256223,-516.11981407,0.00019178,2]
[366906180,1750564256232,-500.0,0.00019178,2]
[366906181,1750564256242,-500.0,0.00019178,2]
[366906182,1750564256251,-1763.09,0.00019178,2]
[366906183,1750564256261,-1231.86,0.00019178,2]
[366906184,1750564256270,-500.0,0.00019178,2]
[366906185,1750564256279,-1763.09,0.00019178,2]
[366906186,1750564256289,-500.0,0.00019178,2]
[366906187,1750564256298,-1763.09,0.00019178,2]
[366906188,1750564256307,-490.0,0.00019178,2]
[366906189,1750564256316,-500.0,0.00019178,2]
[366906190,1750564256326,-1763.09,0.00019178,2]
[366906191,1750564256335,-500.0,0.00019178,2]
[366906192,1750564256344,-11657.31,0.00019178,2]
[366906193,1750564256353,-1763.09,0.00019178,2]
[366906194,1750564256363,-1763.09,0.00019178,2]
[366906195,1750564256372,-1763.09,0.00019178,2]
[366906196,1750564256382,-4374.93,0.00019178,2]
[366906197,1750564256391,-490.0,0.00019178,2]
[366906198,1750564256401,-4536.81,0.00019178,2]
[366906199,1750564256411,-490.0,0.00019178,2]
[366906200,1750564256420,-1812.44,0.00019178,2]
[366906201,1750564256430,-2166.56,0.00019178,2]
[366906202,1750564256439,-1566.31,0.00019178,2]
[366906203,1750564256449,-851.83,0.00019178,2]
[366906204,1750564256459,-2245.54,0.00019178,2]
[366906205,1750564256468,-490.0,0.00019178,2]
[366906206,1750564256478,-1144.0,0.00019178,2]
[366906207,1750564256488,-490.0,0.00019178,2]
[366906208,1750564256497,-490.0,0.00019178,2]
[366906209,1750564256506,-2657.37,0.00019178,2]
[366906210,1750564256516,-490.0,0.00019178,2]
[366906211,1750564256525,-499.08138629,0.00019178,2]
[366906212,1750564256534,-3448.53,0.00019178,2]
[366906213,1750564256544,-490.0,0.00019178,2]
[366906214,1750564256553,-1154.94,0.00019178,2]
[366906215,1750564256562,-2692.63,0.00019178,2]
[366906216,1750564256571,-490.0,0.00019178,2]
[366906217,1750564256581,-787.09,0.00019178,2]
[366906218,1750564256590,-490.0,0.00019178,2]
[366906219,1750564256600,-490.0,0.00019178,2]
[366906220,1750564256609,-490.0,0.00019178,2]
[366906221,1750564256618,-490.0,0.00019178,2]
[366906222,1750564256628,-2041.09,0.00019178,2]
[366906223,1750564256638,-1114.31,0.00019178,2]
[366906224,1750564256647,-309.24662294,0.00019178,2]
[366906225,1750564256657,-719.72,0.00019178,2]
[366906226,1750564256666,-490.0,0.00019178,2]
[366906227,1750564256676,-386.39378245,0.00019178,2]
[366906228,1750564256685,-1826.21,0.00019178,2]
[366906229,1750564256694,-490.0,0.00019178,2]
[366906230,1750564256703,-490.0,0.00019178,2]
[366906231,1750564256713,-544.14,0.00019178,2]
[366906232,1750564256722,-490.0,0.00019178,2]
[366906233,1750564256731,-490.0,0.00019178,2]
[366906234,1750564256740,-1966.77,0.00019178,2]
[366906235,1750564256750,-1833.36,0.00019178,2]
[366906236,1750564256759,-481.18521858,0.00019178,2]
[366906237,1750564256769,-490.0,0.00019178,2]
[366906238,1750564256778,-1510.27,0.00019178,2]
[366906239,1750564256787,-2975.09,0.00019178,2]
[366906240,1750564256797,-3253.28,0.00019178,2]
[366906241,1750564256807,-3253.28,0.00019178,2]
[366906242,1750564256816,-3253.28,0.00019178,2]
[366906243,1750564256825,-3253.28,0.00019178,2]
[366906244,1750564256835,-3253.28,0.00019178,2]
[366906245,1750564256844,-3253.28,0.00019178,2]
[366906246,1750564256853,-3253.28,0.00019178,2]
[366906247,1750564256863,-3253.28,0.00019178,2]
[366906248,1750564256872,-490.0,0.00019178,2]
[366906249,1750564256882,-559.7676106,0.00019178,2]
[366906250,1750564256891,-490.0,0.00019178,2]
[366906251,1750564256901,-490.0,0.00019178,2]
[366906252,1750564256910,-490.0,0.00019178,2]
[366906253,1750564256919,-292.55554035,0.00019178,2]
[366906254,1750564256929,-39231.38,0.00019178,2]
[366906255,1750564256939,-490.0,0.00019178,2]
[366906256,1750564256949,-490.0,0.00019178,2]
[366906257,1750564256958,-490.0,0.00019178,2]
[366906258,1750564256968,-558.54,0.00019178,2]
[366906259,1750564256976,-666.0,0.00019178,2]
[366906260,1750564256986,-500.0,0.0001919,2]
[366906261,1750564256996,-500.0,0.0001919,2]
[366906262,1750564257005,-15126.20628323,0.000192,2]
[366906263,1750564257015,-6548.77059251,0.000192,2]
[366906264,1750564257025,-500.0,0.000192,2]
[366906265,1750564257034,-500.0,0.000192,2]
[366906266,1750564257044,-500.0,0.000192,2]
[366906267,1750564257053,-250.0,0.00019203,2]
[366906268,1750564257063,-250.0,0.00019203,2]
[366906269,1750564257072,-500.0,0.00019203,2]
[366906270,1750564257082,-171.84670806,0.00019205,2]
[366906271,1750564257094,-150.0,0.00019205,2]
[366906272,1750564257104,-500.0,0.00019205,2]
[366906273,1750564257113,-150.0,0.00019205,2]
[366906274,1750564257123,-150.0,0.00019205,2]
[366906275,1750564257133,-150.0,0.00019205,2]
[366906276,1750564257143,-500.0,0.00019205,2]
[366906277,1750564257152,-150.0,0.00019205,2]
[366906278,1750564257164,-500.0,0.00019205,2]
[366906279,1750564257174,-500.0,0.00019218,2]
[366906280,1750564257184,-500.0,0.00019218,2]
[366906281,1750564257194,-605.2209032,0.00019228,2]
[366906282,1750564257203,-500.0,0.00019228,2]
[366906283,1750564257212,-500.0,0.00019228,2]
[366906284,1750564257222,-15126.20628323,0.0001923,2]
[366906285,1750564257232,-6548.77059251,0.0001923,2]
[366906286,1750564257241,-150.46444261,0.00019233,2]
[366906287,1750564257252,-500.0,0.00019233,2]
[366906288,1750564257262,-150.79857448,0.00019233,2]
[366906289,1750564257273,-150.48351388,0.00019233,2]
[366906290,1750564257283,-150.9151092,0.00019233,2]
[366906291,1750564257292,-221.89726734,0.00019233,2]
[366906292,1750564257302,-150.0,0.00019233,2]
[366906293,1750564257313,-502.32051416,0.00019233,2]
[366906294,1750564257323,-347.47245013,0.00019234,2]
[366906295,1750564257333,-502.66133715,0.00019245,2]
[366906296,1750564257343,-500.0,0.00019245,2]
[366906297,1750564257354,-355.50049229,0.00019255,2]
[366906298,1750564257364,-171.37678721,0.00019255,2]
[366906299,1750564257373,-500.0,0.0001926,2]
[366906300,1750564257383,-500.0,0.0001926,2]
[366906301,1750564257393,-180.9730098,0.0001926,2]
[366906302,1750564257403,-152.79956233,0.0001926,2]
[366906303,1750564257413,-15126.20628323,0.00019261,2]
[366906304,1750564257423,-6548.77059251,0.00019261,2]
[366906305,1750564257433,-500.0,0.00019272,2]
[366906306,1750564257443,-15126.20628323,0.00019291,2]
[366906307,1750564257454,-6548.77059251,0.00019291,2]
[366906308,1750564257464,-500.0,0.000193,2]
[366906309,1750564257475,-162.35736245,0.000193,2]
[366906310,1750564257485,-150.0,0.000193,2]
[366906311,1750564257495,-150.0,0.00019321,2]
[366906312,1750564257505,-15126.20628323,0.00019322,2]
[366906313,1750564257515,-6548.77059251,0.00019322,2]
[366906314,1750564257525,-500.0,0.00019327,2]
[366906315,1750564257535,-500.0,0.00019333,2]
[366906316,1750564257545,-1059.31,0.00019333,2]
[366906317,1750564257556,-4114.14,0.00019333,2]
[366906318,1750564257566,-201.9744846,0.00019333,2]
[366906319,1750564257576,-5581.27,0.00019333,2]
[366906320,1750564257586,-1763.09,0.00019333,2]
[366906321,1750564257597,-3253.28,0.00019333,2]
[366906322,1750564257607,-16264.12419607,0.00019333,2]
[366906323,1750564257617,-500.0,0.00019351,2]
[366906324,1750564257627,-15126.20628323,0.00019352,2]
[366906325,1750564257637,-164.42141278,0.00019352,3]
[366906326,1750564257646,-6548.77059251,0.00019352,2]
[366906327,1750564257656,-255.41984092,0.00019352,2]
[366906328,1750564257666,-359.49837882,0.00019355,2]
[366906329,1750564257676,-676.24,0.0001937,2]
[366906330,1750564257686,-347.47245013,0.00019391,2]
[366906331,1750564257696,-4008213.32699154,0.00019392,3]
[366906332,1750564258513,-402.2,0.00019392,3]
[366906333,1750564258559,-607.69917446,0.00019178,2]
[366906334,1750564259791,-430.58082554,0.00019178,2]
[366906335,1750564259801,-183.78983409,0.00019178,2]
[366906336,1750564272907,202.0,0.00017305,2]
[366906337,1750564295089,339.47334368,0.00024657,120]
[366906960,1750564421912,488.47858015,0.00017,2]
[366906966,1750564442653,22582.42505284,0.00017,2]
[366906974,1750564700194,-160.29763773,0.00022137,30]
[366906975,1750564700254,-160.29763773,0.00022301,30]
[366906976,1750564700319,-160.29763773,0.00022466,30]
[366906977,1750564700353,-160.29763773,0.0002263,30]
[366906978,1750564700410,-41612.77,0.00023,30]
[366906979,1750564700947,-22558.0,0.00024658,120]
[366906980,1750564700973,-257.23,0.00024716,120]
[366906981,1750564700997,-650.0,0.000248,120]
[366906982,1750564701051,-500.0,0.00025,30]
[366906983,1750564701074,-508.95548857,0.00025,30]
[366906984,1750564701098,-653.46265132,0.00025,30]
[366906985,1750564701121,-500.0,0.00025,30]
[366906986,1750564701145,-534.35005595,0.00025,30]
[366906987,1750564701170,-500.0,0.00025,30]
[366906988,1750564701195,-500.0,0.00025,30]
[366906989,1750564701221,-500.0,0.00025,30]
[366906990,1750564701245,-500.0,0.00025,30]
[366906991,1750564701269,-518.55654573,0.00025,30]
[366906992,1750564701293,-700.0,0.00025,30]
[366906993,1750564701322,-700.0,0.00025,30]
[366906994,1750564701346,-700.0,0.00025,30]
[366906995,1750564701369,-700.0,0.00025,30]
[366906996,1750564701393,-700.0,0.00025,30]
[366906997,1750564701416,-700.0,0.00025,30]
[366906998,1750564701439,-700.0,0.00025,30]
[366906999,1750564701463,-700.0,0.00025,30]
[366907000,1750564701488,-700.0,0.00025,30]
[366907001,1750564701513,-700.0,0.00025,30]
[366907002,1750564701538,-700.0,0.00025,30]
[366907003,1750564701567,-700.0,0.00025,30]
[366907004,1750564701592,-700.0,0.00025,30]
[366907005,1750564701618,-968.71501281,0.00025,30]
[366907006,1750564701647,-25000.0,0.00025,30]
[366907007,1750564701708,-150.5,0.00026,120]
[366907008,1750564701733,-150.5,0.0002601,120]
[366907009,1750564701764,-150.5,0.0002602,120]
[366907010,1750564701791,-150.5,0.0002603,120]
[366907011,1750564701821,-150.5,0.0002604,120]
[366907012,1750564701848,-239.05,0.0002607,120]
[366907013,1750564701873,-454.0,0.0002607,120]
[366907014,1750564701899,-454.0,0.0002607,120]
[366907015,1750564701925,-454.0,0.0002608,120]
[366907016,1750564701951,-454.0,0.0002608,120]
[366907017,1750564701975,-454.0,0.0002608,120]
[366907018,1750564702001,-459.08,0.0002608,120]
[366907019,1750564702025,-454.0,0.0002609,120]
[366907020,1750564702053,-454.0,0.0002609,120]
[366907021,1750564702078,-454.0,0.0002609,120]
[366907022,1750564702103,-454.0,0.0002609,120]
[366907023,1750564702129,-2000.0,0.00026157,60]
[366907024,1750564702156,-196.74,0.0002663,120]
[366907025,1750564702181,-513.515921,0.00026657,120]
[366907026,1750564702210,-257.23,0.00026963,120]
[366907027,1750564702238,-336.51,0.00026986,120]
[366907028,1750564702269,-244.64,0.00027397,80]
[366907029,1750564702296,-206.0,0.000275,30]
[366907030,1750564702326,-161.72,0.00027517,120]
[366907031,1750564702352,-2000.0,0.00027657,60]
[366907032,1750564702378,-500.0,0.00027658,30]
[366907033,1750564702404,-500.0,0.00027658,30]
[366907034,1750564702430,-500.0,0.00027658,30]
[366907035,1750564702454,-501.66322896,0.00027658,30]
[366907036,1750564702478,-500.0,0.00027658,30]
[366907037,1750564702503,-500.0,0.00027658,30]
[366907038,1750564702527,-528.96364369,0.00027658,30]
[366907039,1750564702552,-500.0,0.00027658,30]
[366907040,1750564702575,-500.0,0.00027658,30]
[366907041,1750564702599,-248.30834442,0.00027658,30]
[366907042,1750564702624,-500.0,0.00027658,30]
[366907043,1750564702648,-500.0,0.00027658,30]
[366907044,1750564702673,-500.0,0.00027658,30]
[366907045,1750564702697,-500.0,0.00027658,30]
[366907046,1750564702721,-500.0,0.00027658,30]
[366907047,1750564702745,-162.7666287,0.00027658,30]
[366907048,1750564702769,-700.0,0.00027658,30]
[366907049,1750564702794,-700.0,0.00027658,30]
[366907050,1750564702819,-700.0,0.00027658,30]
[366907051,1750564702842,-700.0,0.00027658,30]
[366907052,1750564702869,-700.0,0.00027658,30]
[366907053,1750564702893,-700.0,0.00027658,30]
[366907054,1750564702917,-700.0,0.00027658,30]
[366907055,1750564702941,-700.0,0.00027658,30]
[366907056,1750564702966,-700.0,0.00027658,30]
[366907057,1750564702991,-700.0,0.00027658,30]
[366907058,1750564703016,-700.0,0.00027658,30]
[366907059,1750564703041,-700.0,0.00027658,30]
[366907060,1750564703066,-700.0,0.00027658,30]
[366907061,1750564703091,-700.0,0.00027658,30]
[366907062,1750564703117,-700.0,0.00027658,30]
[366907063,1750564703145,-206.0,0.00028,30]
[366907064,1750564703171,-800.0,0.00028,120]
[366907065,1750564703199,-511.0,0.00028,30]
[366907066,1750564703229,-206.0,0.000285,30]
[366907067,1750564703254,-34297.30193256,0.00029,30]
[366907068,1750564703279,-206.0,0.00029,30]
[366907069,1750564703306,-2000.0,0.00029157,60]
[366907070,1750564703333,-5154.5008698,0.0003,30]
[366907071,1750564703359,-8000.0,0.0003,120]
[366907072,1750564703384,-152.76696043,0.0003,30]
[366907073,1750564703409,-158.11745759,0.0003,60]
[366907074,1750564703434,-212.0,0.0003,30]
[366907075,1750564703745,-259.0,0.0003,30]
[366907076,1750564703770,-800.0,0.0003,120]
[366907077,1750564703794,-30000.0,0.0003,30]
[366907078,1750564703818,-30209.35429895,0.0003,30]
[366907079,1750564703842,-30000.0,0.0003,30]
[366907080,1750564703866,-30000.0,0.0003,30]
[366907081,1750564703895,-1332.585771,0.00030657,60]
[366907082,1750564703920,-244.64,0.00030822,80]
[366907083,1750564703945,-1025275.0,0.0003085,120]
[366907084,1750564703969,-3775.84302686,0.00031,120]
[366907085,1750564703994,-212.0,0.00031,30]
[366907086,1750564704017,-259.0,0.00031,30]
[366907087,1750564704043,-1333.0,0.00031945,120]
[366907088,1750564704067,-1012.6,0.00032,120]
[366907089,1750564704091,-306.02336005,0.00032,30]
[366907090,1750564704116,-212.0,0.00032,30]
[366907091,1750564704140,-259.0,0.00032,30]
[366907092,1750564704168,-800.0,0.00032,120]
[366907093,1750564704193,-2213980.1,0.000325,120]
[366907094,1750564704218,-212.0,0.00032847,120]
[366907095,1750564704247,-212.0,0.00032847,120]
[366907096,1750564704271,-212.0,0.00032857,120]
[366907097,1750564704296,-212.0,0.00032857,120]
[366907098,1750564704321,-212.0,0.00032857,120]
[366907099,1750564704345,-216.07,0.00032857,120]
[366907100,1750564704370,-212.0,0.00032867,120]
[366907101,1750564704396,-212.0,0.00032867,120]
[366907102,1750564704423,-212.0,0.00032867,120]
[366907103,1750564704452,-212.0,0.00032867,120]
[366907104,1750564704486,-2071.59,0.00032904,30]
[366907105,1750564704511,-212.0,0.00033,30]
[366907106,1750564704536,-259.0,0.00033,30]
[366907107,1750564704560,-200000.0,0.00033,120]
[366907108,1750564704585,-9000.0,0.000332,30]
[366907109,1750564704609,-1200.0,0.00033384,60]